bitfinex/quotes_SOLUSD_20260305
["timestamp","ask_amount","ask_price","bid_price","bid_amount"]
[1772728185339,3.43948805,88.463,88.431,3.48038628]
[1772728186941,0.14216157,88.46,88.412,3.48038628]
[1772728187123,3.43948805,88.455,88.412,3.48038628]
[1772728187441,39.8484396,88.464,88.412,3.48038628]
[1772728187442,3.43948805,88.445,88.412,3.48038628]
[1772728187737,3.43948805,88.445,88.404,3.48038628]
[1772728190654,11.30658948,88.444,88.406,3.30246887]
[1772728191148,3.271947,88.443,88.406,3.30246887]
[1772728191349,39.57306318,88.444,88.406,3.30246887]
[1772728191948,3.271947,88.443,88.406,3.30246887]
[1772728192936,11.30684516,88.442,88.408,3.30246887]
[1772728193140,14.57879216,88.442,88.408,3.30246887]
[1772728193449,3.271947,88.441,88.408,3.30246887]
[1772728194944,3.271947,88.435,88.408,3.30246887]
[1772728195757,3.271947,88.435,88.41,3.30246887]
[1772728196450,11.30710085,88.44,88.41,3.30246887]
[1772728198848,3.271947,88.452,88.387,3.30246887]
[1772728199058,3.271947,88.479,88.39,0.14216157]
[1772728199234,3.271947,88.479,88.401,3.30246887]
[1772728199438,3.271947,88.465,88.401,3.30246887]
[1772728199640,3.271947,88.465,88.39,3.69383402]
[1772728199641,3.55627014,88.463,88.403,3.30246887]
[1772728200142,3.55627014,88.459,88.403,3.30246887]
[1772728201444,3.271947,88.459,88.403,3.30246887]
[1772728201641,3.271947,88.457,88.405,3.30246887]
[1772728201839,3.271947,88.455,88.405,3.30246887]
[1772728202051,39.56680005,88.458,88.405,3.30246887]
[1772728202052,0.28432314,88.446,88.405,3.30246887]
[1772728202357,3.271947,88.445,88.405,3.30246887]
[1772728202545,3.271947,88.45,88.405,3.30246887]
[1772728202955,0.28432314,88.457,88.405,3.30246887]
[1772728203149,3.271947,88.456,88.405,3.30246887]
[1772728203357,3.271947,88.478,88.407,3.69383402]
[1772728203562,3.271947,88.478,88.408,3.30246887]
[1772728203763,3.55627014,88.476,88.413,3.30246887]
[1772728203945,3.55627014,88.469,88.414,3.30246887]
[1772728204149,5.88702301,88.489,88.414,3.30246887]
[1772728204150,3.271947,88.488,88.414,3.30246887]
[1772728204466,3.271947,88.485,88.414,3.30246887]
[1772728204660,4.31998081,88.48,88.414,3.30246887]
[1772728204960,3.271947,88.471,88.414,3.30246887]
[1772728205164,0.28432314,88.474,88.414,3.30246887]
[1772728205165,3.271947,88.465,88.414,3.30246887]
[1772728205348,3.271947,88.485,88.414,3.30246887]
[1772728206064,3.55627014,88.483,88.419,3.30246887]
[1772728207266,3.271947,88.483,88.421,3.30246887]
[1772728207461,3.69383402,88.513,88.421,3.30246887]
[1772728207666,14.5651293,88.549,88.423,3.30246887]
[1772728207840,3.271947,88.529,88.442,3.30246887]
[1772728208045,3.271947,88.527,88.449,3.30246887]
[1772728208361,3.271947,88.517,88.455,3.30246887]
[1772728208596,3.271947,88.517,88.457,3.30246887]
[1772728209249,11.29586119,88.528,88.459,3.30246887]
[1772728209450,3.271947,88.525,88.463,3.30246887]
[1772728209690,3.271947,88.517,88.463,3.30246887]
[1772728209858,39.53551418,88.528,88.463,3.30246887]
[1772728209859,0.28432314,88.526,88.463,3.30246887]
[1772728210061,11.29586119,88.528,88.467,3.30246887]
[1772728210264,3.271947,88.527,88.467,3.30246887]
[1772728210761,3.271947,88.535,88.472,3.30246887]
[1772728210958,11.29491581,88.536,88.474,3.30246887]
[1772728211360,3.271947,88.535,88.474,3.30246887]
[1772728211670,3.271947,88.527,88.474,3.30246887]
[1772728211872,0.28432314,88.524,88.474,3.30246887]
[1772728212074,11.29739256,88.516,88.475,11.30262786]
[1772728212253,3.271947,88.515,88.475,14.60509673]
[1772728212451,3.271947,88.524,88.476,3.30246887]
[1772728212763,45.15468643,88.585,88.476,3.30246887]
[1772728212764,3.55627014,88.538,88.476,3.30246887]
[1772728213277,3.271947,88.548,88.481,3.30246887]
[1772728213571,4.41998081,88.57,88.493,3.30246887]
[1772728213572,3.271947,88.559,88.493,3.30246887]
[1772728213873,3.271947,88.548,88.497,3.30246887]
[1772728214054,3.271947,88.546,88.499,3.30246887]
[1772728214255,4.31998081,88.53,88.479,11.30211688]
[1772728214453,3.271947,88.519,88.479,14.60458575]
[1772728214664,3.271947,88.517,88.479,3.30246887]
[1772728215066,3.271947,88.508,88.46,3.30246887]
[1772728215270,3.271947,88.508,88.395,45.25096939]
[1772728215271,3.271947,88.497,88.418,3.30246887]
[1772728215660,3.55627014,88.489,88.421,3.30246887]
[1772728216072,4.31998081,88.48,88.422,11.30940263]
[1772728216272,3.271947,88.478,88.423,3.30246887]
[1772728216652,3.271947,88.483,88.423,3.30246887]
[1772728216980,3.271947,88.475,88.423,3.30246887]
[1772728217175,3.271947,88.467,88.423,3.30246887]
[1772728217675,3.271947,88.476,88.423,3.30246887]
[1772728218256,3.271947,88.474,88.425,3.30246887]
[1772728219481,3.43130171,88.468,88.427,3.5229663]
[1772728219871,3.43130171,88.464,88.426,11.30889105]
[1772728220184,3.43130171,88.467,88.418,3.5229663]
[1772728220854,11.30288336,88.473,88.418,3.5229663]
[1772728220855,0.28432314,88.462,88.418,3.5229663]
[1772728221062,3.43130171,88.457,88.418,3.5229663]
[1772728221374,3.43130171,88.457,88.42,3.5229663]
[1772728222175,3.43130171,88.455,88.42,3.5229663]
[1772728222689,3.43130171,88.451,88.401,3.5229663]
[1772728222882,3.43130171,88.447,88.401,3.5229663]
[1772728223395,3.43130171,88.447,88.403,3.5229663]
[1772728223565,3.71562485,88.46,88.403,3.5229663]
[1772728223760,3.43130171,88.477,88.406,3.5229663]
[1772728224079,3.43130171,88.477,88.409,3.5229663]
[1772728224389,3.43130171,88.477,88.415,3.5229663]
[1772728224878,3.43130171,88.477,88.419,3.5229663]
[1772728225084,3.43130171,88.477,88.425,3.5229663]
[1772728225377,11.30146007,88.485,88.402,197.95932215]
[1772728225378,11.5642324,88.46,88.408,3.5229663]
[1772728225556,3.71562485,88.459,88.408,3.5229663]
[1772728227478,3.71562485,88.459,88.399,0.74560072]
[1772728227479,3.39458979,88.457,88.41,3.52448205]
[1772728227873,3.39458979,88.457,88.409,39.58872964]
[1772728227874,3.39458979,88.479,88.415,3.52448205]
[1772728228186,11.30045653,88.492,88.415,3.52448205]
[1772728228187,3.39458979,88.477,88.415,3.52448205]
[1772728229885,3.67891293,88.475,88.417,3.52448205]
[1772728230088,3.67891293,88.469,88.417,3.52448205]
[1772728232188,3.67891293,88.469,88.391,90.5062206]
[1772728232189,11.5642324,88.46,88.402,3.52448205]
[1772728232485,3.39458979,88.457,88.402,3.52448205]
[1772728234181,3.39458979,88.454,88.403,11.3118333]
[1772728234383,39.56769467,88.456,88.403,11.3118333]
[1772728234384,0.14216157,88.447,88.403,11.3118333]
[1772728234583,3.39458979,88.438,88.403,11.3118333]
[1772728235480,3.39458979,88.438,88.404,3.52448205]
[1772728236270,0.14216157,88.439,88.405,11.31157739]
[1772728236271,3.39458979,88.436,88.405,11.31157739]
[1772728236875,3.39458979,88.436,88.4,11.3120986]
[1772728237073,3.39458979,88.436,88.399,0.74560072]
[1772728237074,0.28432314,88.43,88.399,0.74560072]
[1772728237273,0.28432314,88.429,88.399,0.74560072]
[1772728237487,3.67891293,88.429,88.4,3.52448205]
[1772728238473,3.39458979,88.427,88.401,11.31208922]
[1772728238694,3.39458979,88.427,88.399,0.74560072]
[1772728239388,3.39458979,88.421,88.372,3.52448205]
[1772728239700,0.28432314,88.418,88.372,3.52448205]
[1772728239877,3.67891293,88.418,88.372,3.52448205]
[1772728240987,11.5942671,88.418,88.374,3.52448205]
[1772728241293,3.39458979,88.417,88.374,3.52448205]
[1772728243098,3.39458979,88.415,88.376,3.52448205]
[1772728243396,11.3101701,88.416,88.376,3.52448205]
[1772728243700,3.39458979,88.415,88.376,3.52448205]
[1772728243902,11.3101701,88.416,88.376,3.52448205]
[1772728244802,11.3101701,88.416,88.378,3.52448205]
[1772728245475,3.39458979,88.415,88.378,3.52448205]
[1772728245676,11.3101701,88.416,88.378,3.52448205]
[1772728245999,11.3101701,88.416,88.38,3.52448205]
[1772728246497,11.3101701,88.416,88.377,39.60306414]
[1772728246498,4.32134764,88.47,88.383,3.52448205]
[1772728246699,3.39458979,88.468,88.393,0.28432314]
[1772728247000,3.39458979,88.459,88.404,3.52448205]
[1772728248082,3.39458979,88.47,88.408,3.52448205]
[1772728248797,3.39458979,88.47,88.403,3.69383402]
[1772728248798,3.39458979,88.485,88.422,3.69383402]
[1772728248987,11.30147823,88.484,88.425,3.54571518]
[1772728249303,11.30147823,88.484,88.422,3.69383402]
[1772728249304,11.30147823,88.484,88.427,3.54571518]
[1772728250080,3.22423168,88.483,88.427,3.54571518]
[1772728250301,3.22423168,88.481,88.427,3.54571518]
[1772728250488,0.28432314,88.482,88.427,3.54571518]
[1772728250880,14.52609309,88.481,88.429,3.54571518]
[1772728251080,3.22423168,88.48,88.429,3.54571518]
[1772728251785,11.30186141,88.481,88.429,3.54571518]
[1772728252201,14.52609309,88.481,88.429,3.54571518]
[1772728252392,3.22423168,88.48,88.429,3.54571518]
[1772728252589,3.22423168,88.48,88.431,3.69383402]
[1772728252795,3.22423168,88.48,88.432,3.54571518]
[1772728253092,11.30211688,88.479,88.434,3.54571518]
[1772728253502,2.80932743,88.508,88.436,7.2395492]
[1772728253683,3.22423168,88.507,88.44,3.54571518]
[1772728254005,3.22423168,88.489,88.44,3.54571518]
[1772728255014,3.22423168,88.487,88.442,3.54571518]
[1772728257190,0.28432314,88.494,88.444,3.54571518]
[1772728257416,3.50855482,88.494,88.444,3.54571518]
[1772728260687,3.50855482,88.492,88.441,3.54571518]
[1772728260888,39.55115092,88.493,88.424,61.9]
[1772728260889,3.50855482,88.489,88.426,3.54571518]
[1772728261198,3.50855482,88.489,88.429,3.51704566]
[1772728261199,3.22423168,88.489,88.429,3.51704566]
[1772728261402,3.55050945,88.535,88.434,3.51704566]
[1772728261602,11.29537443,88.532,88.452,3.51704566]
[1772728261906,14.8455663,88.535,88.461,3.51704566]
[1772728262109,14.8455663,88.535,88.476,0.28432314]
[1772728262407,3.55050945,88.557,88.491,3.51704566]
[1772728262613,3.55050945,88.557,88.465,3.69383402]
[1772728262614,11.29228962,88.556,88.499,3.51704566]
[1772728262801,3.55050945,88.555,88.499,3.51704566]
[1772728263130,3.55050945,88.539,88.498,11.29969038]
[1772728263317,3.55050945,88.553,88.502,3.51704566]
[1772728263515,6.93289669,88.56,88.502,3.51704566]
[1772728263724,11.29190709,88.559,88.508,3.51704566]
[1772728264031,6.93289669,88.56,88.511,0.28432314]
[1772728264197,0.1,88.58,88.501,3.69383402]
[1772728264198,0.1,88.58,88.524,0.28432314]
[1772728264511,0.1,88.58,88.501,8.51860971]
[1772728264512,0.1,88.58,88.537,3.51704566]
[1772728264718,0.1,88.58,88.536,0.14216157]
[1772728264719,0.1,88.58,88.539,3.51704566]
[1772728265097,0.1,88.58,88.541,3.69383402]
[1772728265327,3.5148137,88.608,88.55,0.14216157]
[1772728265623,3.5148137,88.608,88.557,3.22018752]
[1772728266837,3.5148137,88.606,88.559,3.22018752]
[1772728267001,39.50026521,88.607,88.516,3.50451066]
[1772728267002,3.5148137,88.602,88.516,3.50451066]
[1772728267193,3.5148137,88.589,88.516,3.22018752]
[1772728267416,0.14216157,88.584,88.516,3.22018752]
[1772728267727,3.5148137,88.581,88.518,3.22018752]
[1772728268726,11.28923007,88.58,88.523,3.33764999]
[1772728269016,3.28459581,88.579,88.523,3.33764999]
[1772728269222,3.28459581,88.577,88.523,3.33764999]
[1772728269415,3.28459581,88.571,88.523,3.33764999]
[1772728270320,3.28459581,88.567,88.517,0.8223009]
[1772728270518,3.28459581,88.559,88.517,12.11951755]
[1772728270705,3.28459581,88.557,88.518,3.33764999]
[1772728271708,11.55990382,88.58,88.518,3.33764999]
[1772728271709,11.29127414,88.564,88.518,3.33764999]
[1772728272528,3.28459581,88.563,88.518,3.33764999]
[1772728272825,3.28459581,88.561,88.52,3.33764999]
[1772728274418,11.29152458,88.562,88.52,3.33764999]
[1772728274619,3.28459581,88.579,88.52,3.33764999]
[1772728274802,2.78459581,88.577,88.521,39.53864054]
[1772728275006,2.78459581,88.577,88.522,3.33764999]
[1772728276222,11.55990382,88.61,88.525,3.33764999]
[1772728276429,11.55990382,88.61,88.521,141.20943051]
[1772728276430,11.55990382,88.61,88.528,3.33764999]
[1772728276800,11.55990382,88.61,88.534,0.28432314]
[1772728276801,39.78369678,88.609,88.534,0.28432314]
[1772728277002,3.28459581,88.602,88.537,3.33764999]
[1772728277228,3.28459581,88.599,88.537,3.33764999]
[1772728277527,39.49937364,88.609,88.537,3.33764999]
[1772728277528,3.28459581,88.579,88.537,3.33764999]
[1772728277729,3.28459581,88.579,88.53,3.33764999]
[1772728278105,0.28432314,88.59,88.518,3.33764999]
[1772728278106,3.28459581,88.569,88.518,3.33764999]
[1772728278532,3.28459581,88.577,88.519,3.33764999]
[1772728279028,14.59050711,88.576,88.521,3.37436227]
[1772728279714,11.28973988,88.576,88.524,3.37436227]
[1772728280029,45.14214131,88.609,88.523,3.69383402]
[1772728280030,11.28832355,88.588,88.531,3.37436227]
[1772728280222,4.82477569,88.636,88.523,3.69383402]
[1772728280223,28.21342069,88.611,88.539,3.37436227]
[1772728280431,3.30076723,88.609,88.547,3.37436227]
[1772728281222,3.30076723,88.609,88.539,0.28432314]
[1772728281223,3.30076723,88.607,88.549,3.37436227]
[1772728283429,11.55990382,88.6,88.539,4.50380805]
[1772728283737,3.30076723,88.597,88.54,3.37436227]
[1772728283924,3.30076723,88.595,88.54,3.37436227]
[1772728285241,3.30076723,88.589,88.54,3.37436227]
[1772728285416,3.30076723,88.587,88.542,3.37436227]
[1772728287711,3.51080452,88.585,88.542,3.37436227]
[1772728288213,3.51080452,88.579,88.542,3.37436227]
[1772728289923,39.5131974,88.578,88.542,3.37436227]
[1772728290125,3.51080452,88.577,88.542,3.37436227]
[1772728290528,3.51080452,88.577,88.52,3.35783662]
[1772728290727,3.51080452,88.577,88.521,61.9]
[1772728290930,3.51080452,88.577,88.522,3.35783662]
[1772728292338,3.51080452,88.575,88.524,3.35783662]
[1772728293239,11.28973988,88.576,88.523,39.53774724]
[1772728293240,11.28973988,88.576,88.526,3.35783662]
[1772728293430,45.13018603,88.633,88.538,3.35783662]
[1772728293621,3.51080452,88.613,88.548,3.35783662]
[1772728294142,3.51080452,88.611,88.548,3.35783662]
[1772728294324,3.69383402,88.633,88.515,15.35239136]
[1772728294325,3.51080452,88.609,88.555,0.14216157]
[1772728294526,3.51080452,88.609,88.558,3.35783662]
[1772728295033,0.1,88.62,88.56,3.35783662]
[1772728295234,0.1,88.63,88.572,3.35783662]
[1772728295437,3.51080452,88.67,88.583,0.28432314]
[1772728295745,3.51080452,88.659,88.591,0.28432314]
[1772728295944,3.51080452,88.659,88.598,3.35783662]
[1772728296142,3.51080452,88.659,88.601,0.14216157]
[1772728296323,3.51080452,88.659,88.576,3.69383402]
[1772728296324,3.51080452,88.657,88.61,3.35783662]
[1772728297028,11.27929797,88.658,88.61,3.35783662]
[1772728297544,14.7889576,88.667,88.61,3.35783662]
[1772728297732,3.51080452,88.666,88.61,3.35783662]
[1772728298426,0.1,88.68,88.615,3.35783662]
[1772728298625,0.1,88.68,88.623,3.35783662]
[1772728298948,3.51080452,88.706,88.647,3.35783662]
[1772728299148,3.51080452,88.722,88.655,3.35783662]
[1772728299323,11.27128864,88.721,88.668,3.35783662]
[1772728299644,3.51080452,88.72,88.67,3.35783662]
[1772728300023,3.51080452,88.737,88.674,3.35783662]
[1772728300222,11.26993077,88.732,88.678,3.35783662]
[1772728300447,11.26993077,88.732,88.68,3.35783662]
[1772728300836,11.26929983,88.737,88.68,3.35783662]
[1772728301030,3.51080452,88.736,88.68,3.35783662]
[1772728301228,3.51080452,88.721,88.68,3.35783662]
[1772728301743,3.51080452,88.736,88.68,3.35783662]
[1772728302638,3.51080452,88.734,88.682,3.35783662]
[1772728302950,3.51080452,88.732,88.682,3.35783662]
[1772728304831,3.51080452,88.73,88.682,3.35783662]
[1772728305234,3.51080452,88.728,88.682,3.35783662]
[1772728305451,0.28432314,88.729,88.67,0.75114607]
[1772728305452,3.51080452,88.719,88.67,0.75114607]
[1772728305653,3.51080452,88.713,88.67,0.75114607]
[1772728305850,3.51080452,88.709,88.67,0.75114607]
[1772728306150,3.51080452,88.701,88.67,0.75114607]
[1772728307049,3.51080452,88.718,88.67,0.75114607]
[1772728307555,3.51080452,88.716,88.67,0.75114607]
[1772728307759,3.51080452,88.712,88.67,0.75114607]
[1772728308132,3.51080452,88.718,88.671,3.35783662]
[1772728308364,3.51080452,88.718,88.672,3.35783662]
[1772728309446,3.39447061,88.716,88.673,14.561728]
[1772728309647,3.39447061,88.716,88.674,3.28433804]
[1772728311535,14.66652155,88.715,88.676,3.28433804]
[1772728311750,3.39447061,88.714,88.676,3.28433804]
[1772728311954,3.39447061,88.712,88.67,0.75114607]
[1772728312137,3.39447061,88.71,88.67,0.75114607]
[1772728312469,39.45217831,88.715,88.671,3.28433804]
[1772728312754,3.67879375,88.738,88.674,3.28433804]
[1772728312956,3.67879375,88.738,88.673,3.69383402]
[1772728312957,3.39447061,88.738,88.678,3.28433804]
[1772728313847,3.39447061,88.736,88.68,3.28433804]
[1772728314050,3.39447061,88.734,88.68,3.28433804]
[1772728315037,3.39447061,88.73,88.68,3.28433804]
[1772728315853,3.39447061,88.726,88.671,3.28433804]
[1772728316057,3.39447061,88.712,88.671,3.28433804]
[1772728316350,3.39447061,88.719,88.673,3.28433804]
[1772728316651,3.39447061,88.719,88.672,39.47130999]
[1772728316652,11.2702724,88.729,88.675,3.28433804]
[1772728316844,3.39447061,88.746,88.68,3.28433804]
[1772728317060,11.50126462,88.77,88.68,3.28433804]
[1772728317061,3.39447061,88.737,88.68,3.28433804]
[1772728317241,3.39447061,88.737,88.682,3.28433804]
[1772728317552,3.39447061,88.737,88.675,3.69383402]
[1772728317553,3.39447061,88.737,88.688,3.28433804]
[1772728317939,14.66385394,88.736,88.69,3.28433804]
[1772728318145,3.39447061,88.735,88.69,3.28433804]
[1772728318952,39.44284167,88.736,88.674,3.69383402]
[1772728318953,3.39447061,88.731,88.684,3.28433804]
[1772728319163,3.39447061,88.729,88.679,3.28433804]
[1772728319333,0.14216157,88.718,88.671,3.28433804]
[1772728319537,3.39447061,88.711,88.671,3.28433804]
[1772728320155,3.39447061,88.709,88.663,11.27857197]
[1772728320659,3.39447061,88.719,88.672,3.28433804]
[1772728321257,39.4459534,88.729,88.672,3.28433804]
[1772728321440,3.39447061,88.728,88.672,3.28433804]
[1772728322045,3.39447061,88.724,88.672,3.28433804]
[1772728322243,3.39447061,88.722,88.674,3.28433804]
[1772728322567,39.44862098,88.723,88.674,3.28433804]
[1772728322568,3.39447061,88.72,88.674,3.28433804]
[1772728324463,3.39447061,88.718,88.676,3.28433804]
[1772728325356,3.39447061,88.718,88.671,3.28433804]
[1772728325556,0.14216157,88.715,88.67,0.75114607]
[1772728325747,0.28432314,88.717,88.67,0.75114607]
[1772728325748,3.39447061,88.71,88.67,0.75114607]
[1772728326257,3.39447061,88.71,88.672,3.28433804]
[1772728326457,3.39447061,88.71,88.674,3.28433804]
[1772728326458,11.27281335,88.709,88.674,3.28433804]
[1772728326653,3.39447061,88.708,88.674,3.28433804]
[1772728326957,3.39447061,88.708,88.67,0.75114607]
[1772728327944,3.39447061,88.708,88.671,3.28433804]
[1772728328468,3.39447061,88.706,88.672,3.28433804]
[1772728329142,39.45573629,88.707,88.672,3.28433804]
[1772728329538,11.27306751,88.707,88.672,3.28433804]
[1772728330470,3.39447061,88.713,88.674,3.28433804]
[1772728330654,39.45262303,88.714,88.67,0.75114607]
[1772728330655,3.39447061,88.711,88.67,0.75114607]
[1772728331245,3.39447061,88.711,88.671,3.28433804]
[1772728331449,3.39447061,88.711,88.672,3.28433804]
[1772728331839,3.39447061,88.711,88.67,0.75114607]
[1772728332563,3.39447061,88.707,88.67,0.75114607]
[1772728333347,3.39447061,88.705,88.67,0.75114607]
[1772728333649,3.39447061,88.691,88.655,3.28433804]
[1772728333847,3.39447061,88.7,88.655,3.28433804]
[1772728335047,3.39447061,88.698,88.656,11.27955242]
[1772728335259,3.39447061,88.698,88.657,3.28433804]
[1772728335582,3.39447061,88.698,88.643,3.28433804]
[1772728335785,3.39447061,88.698,88.61,61.9]
[1772728335786,0.28432314,88.695,88.645,3.28433804]
[1772728335988,3.67879375,88.691,88.645,3.28433804]
[1772728336145,3.39447061,88.691,88.645,3.28433804]
[1772728337168,39.45929491,88.699,88.628,11.28311594]
[1772728337169,0.28432314,88.672,88.628,11.28311594]
[1772728337398,3.39447061,88.671,88.628,11.28311594]
[1772728337576,3.39447061,88.671,88.627,3.28433804]
[1772728338851,3.39967523,88.669,88.628,3.41518391]
[1772728339066,3.39967523,88.669,88.627,11.28323965]
[1772728339276,3.39967523,88.669,88.623,11.28370637]
[1772728339588,3.39967523,88.669,88.599,0.82238166]
[1772728339589,3.39967523,88.661,88.605,3.41518391]
[1772728340253,3.39967523,88.661,88.607,3.41518391]
[1772728340862,3.39967523,88.659,88.609,3.41518391]
[1772728341066,3.39967523,88.651,88.609,3.41518391]
[1772728341575,0.14216157,88.642,88.603,11.28628346]
[1772728341779,3.39967523,88.641,88.603,11.28628346]
[1772728342384,3.39967523,88.651,88.604,3.41518391]
[1772728343478,3.39967523,88.649,88.606,3.41518391]
[1772728343684,3.39967523,88.629,88.58,3.61518391]
[1772728343884,0.28432314,88.624,88.58,3.61518391]
[1772728344189,3.39967523,88.621,88.581,11.28910262]
[1772728344573,3.39967523,88.621,88.582,3.41518391]
[1772728345169,186.12521148,88.65,88.582,3.41518391]
[1772728345170,0.28432314,88.642,88.582,3.41518391]
[1772728345372,11.28031584,88.65,88.585,3.41518391]
[1772728345668,3.39967523,88.663,88.593,0.28432314]
[1772728345869,11.2778987,88.669,88.608,3.41518391]
[1772728346089,11.2778987,88.669,88.618,3.41887436]
[1772728346887,11.2778987,88.669,88.62,3.41887436]
[1772728348089,14.60723671,88.669,88.62,3.41887436]
[1772728348271,11.2778987,88.669,88.62,3.41887436]
[1772728348890,3.32933801,88.678,88.622,3.41887436]
[1772728349967,11.27502083,88.692,88.627,3.41887436]
[1772728350169,11.27395715,88.7,88.637,3.41887436]
[1772728350465,3.32933801,88.699,88.647,3.41887436]
[1772728350671,3.32933801,88.695,88.625,3.7031975]
[1772728350965,3.32933801,88.689,88.63,3.41887436]
[1772728351868,3.32933801,88.687,88.63,3.41887436]
[1772728352069,50.96456374,88.69,88.63,3.41887436]
[1772728352070,3.32933801,88.673,88.63,3.41887436]
[1772728352269,3.32933801,88.671,88.63,3.41887436]
[1772728352901,3.32933801,88.669,88.621,3.41887436]
[1772728353070,3.32933801,88.661,88.621,3.41887436]
[1772728353999,3.32933801,88.678,88.621,3.41887436]
[1772728355272,3.32933801,88.676,88.623,3.41887436]
[1772728357190,0.28432314,88.683,88.625,3.41887436]
[1772728357385,11.50126462,88.73,88.631,3.7031975]
[1772728357687,3.32933801,88.717,88.631,3.7031975]
[1772728357874,3.32933801,88.711,88.631,3.7031975]
[1772728359172,3.61366115,88.701,88.636,3.41887436]
[1772728359376,3.61366115,88.701,88.638,3.41887436]
[1772728359590,3.32933801,88.701,88.64,3.41887436]
[1772728360170,3.32933801,88.701,88.643,0.28432314]
[1772728360370,3.32933801,88.701,88.648,3.41887436]
[1772728361501,3.32933801,88.697,88.65,3.41887436]
[1772728361697,3.32933801,88.691,88.65,3.41887436]
[1772728362090,39.45885004,88.7,88.65,3.41887436]
[1772728362452,4.82477569,88.734,88.649,39.48155082]
[1772728362453,11.27348738,88.704,88.653,3.41887436]
[1772728362983,11.27282516,88.709,88.653,3.41887436]
[1772728363194,45.05784602,88.775,88.657,3.41887436]
[1772728363195,3.32933801,88.722,88.657,3.41887436]
[1772728363507,3.32933801,88.72,88.664,3.41887436]
[1772728363697,3.32933801,88.72,88.668,3.41887436]
[1772728365505,3.32933801,88.718,88.67,3.41887436]
[1772728366091,3.32933801,88.716,88.663,11.27856824]
[1772728366291,0.28432314,88.711,88.663,11.27856824]
[1772728366594,3.32933801,88.7,88.66,14.69779176]
[1772728366805,3.32933801,88.7,88.66,3.41887436]
[1772728366998,3.32933801,88.69,88.65,3.41887436]
[1772728367908,3.32933801,88.688,88.652,3.41887436]
[1772728370114,3.28678325,88.686,88.652,3.41887436]
[1772728370409,11.50126462,88.71,88.639,3.69383402]
[1772728370410,3.28678325,88.719,88.654,3.34431329]
[1772728370593,3.28678325,88.711,88.654,3.34431329]
[1772728371512,3.28678325,88.711,88.656,3.34431329]
[1772728371696,11.27154273,88.719,88.668,3.34431329]
[1772728372431,3.28678325,88.729,88.673,3.34431329]
[1772728373713,0.28432314,88.736,88.673,3.34431329]
[1772728373915,3.57110639,88.736,88.673,3.34431329]
[1772728374326,3.57110639,88.736,88.669,39.47264545]
[1772728374327,3.57110639,88.734,88.675,3.34431329]
[1772728375424,3.28678325,88.734,88.677,3.34431329]
[1772728375601,3.28678325,88.73,88.677,3.34431329]
[1772728376824,3.28678325,88.728,88.679,3.34431329]
[1772728377121,3.28678325,88.726,88.674,3.34431329]
[1772728377325,0.14216157,88.721,88.674,3.34431329]
[1772728377501,3.28678325,88.72,88.674,3.34431329]
[1772728377701,3.28678325,88.71,88.674,3.34431329]
[1772728377904,3.28678325,88.719,88.674,3.34431329]
[1772728378105,3.57110639,88.728,88.674,3.34431329]
[1772728378807,3.57110639,88.726,88.676,3.34431329]
[1772728379016,3.57110639,88.726,88.671,11.27757675]
[1772728379325,3.57110639,88.726,88.672,3.34431329]
[1772728379502,3.28678325,88.726,88.672,3.34431329]
[1772728380552,3.28678325,88.72,88.672,3.34431329]
[1772728380831,3.28678325,88.73,88.676,3.69383402]
[1772728381026,3.28678325,88.73,88.677,3.34431329]
[1772728381244,11.26867335,88.742,88.679,3.34431329]
[1772728381418,3.28678325,88.737,88.687,3.34431329]
[1772728382630,3.42894482,88.719,88.633,3.34431329]
[1772728382941,3.42894482,88.719,88.627,45.13291216]
[1772728382942,3.28678325,88.713,88.638,3.62863643]
[1772728385138,11.27243213,88.712,88.645,3.34431329]
[1772728385337,11.27243213,88.712,88.647,3.34431329]
[1772728385532,11.27243213,88.712,88.657,3.34431329]
[1772728386045,3.28678325,88.728,88.661,3.34431329]
[1772728386338,11.26732611,88.753,88.668,3.62863643]
[1772728386544,11.26732611,88.753,88.675,3.83599559]
[1772728386727,11.26732611,88.753,88.691,0.28432314]
[1772728386931,3.28678325,88.76,88.669,15.35256736]
[1772728386932,11.26677955,88.757,88.698,3.34431329]
[1772728387132,11.26729622,88.753,88.703,3.34431329]
[1772728387347,3.28678325,88.737,88.652,45.12014927]
[1772728387544,3.28678325,88.733,88.653,11.27993412]
[1772728387744,3.28678325,88.731,88.656,3.69383402]
[1772728387954,3.28678325,88.731,88.657,0.28432314]
[1772728388334,3.28678325,88.729,88.657,0.28432314]
[1772728388526,3.28678325,88.727,88.657,0.28432314]
[1772728388853,3.28678325,88.721,88.657,0.28432314]
[1772728389232,3.28678325,88.719,88.661,3.69383402]
[1772728389437,3.28678325,88.719,88.662,3.34431329]
[1772728389637,3.28678325,88.726,88.664,3.34431329]
[1772728389834,3.28678325,88.719,88.664,3.34431329]
[1772728390049,39.44684255,88.727,88.664,3.34431329]
[1772728390050,3.28678325,88.713,88.664,3.34431329]
[1772728391353,3.28678325,88.713,88.666,3.34431329]
[1772728391832,11.27243213,88.712,88.666,3.34431329]
[1772728392539,3.28678325,88.726,88.677,0.14216157]
[1772728392851,3.28678325,88.726,88.678,3.34431329]